bitfinex/quotes_SOLUSD_20251223
["timestamp","ask_amount","ask_price","bid_price","bid_amount"]
[1766488977212,1.88311459,125.24,125.2,0.71]
[1766488977525,0.7,125.23,125.19,2.59311459]
[1766488977884,0.7,125.23,125.2,1.88311459]
[1766488978809,7.98532474,125.23,125.2,2.59311459]
[1766488979002,23.28485234,125.24,125.21,0.71]
[1766488979407,0.7,125.23,125.19,2.59311459]
[1766488979597,0.7,125.23,125.19,0.71]
[1766488980717,8.68563664,125.23,125.19,0.71]
[1766488982008,0.7,125.22,125.19,0.71]
[1766488983017,0.7,125.21,125.18,0.71]
[1766488983396,0.7,125.21,125.16,2.59311459]
[1766488984092,0.7,125.21,125.16,0.71]
[1766488984292,0.7,125.21,125.16,2.59311459]
[1766488984607,8.68670957,125.21,125.18,0.71]
[1766488984805,22.58670957,125.21,125.19,0.71]
[1766488985004,19.12387537,125.22,125.19,2.59311459]
[1766488985399,10.43767296,125.22,125.2,0.71]
[1766488985697,10.43767296,125.22,125.2,2.59311459]
[1766488986423,18.42324715,125.23,125.2,2.59311459]
[1766488987005,18.42324715,125.23,125.2,0.71]
[1766488987227,0.69,125.22,125.19,1.88311459]
[1766488987819,18.42324715,125.23,125.2,0.68]
[1766488997504,7.98557419,125.23,125.2,0.68]
[1766488997702,0.69,125.22,125.16,0.68]
[1766488997922,22.58557419,125.23,125.2,0.68]
[1766488998102,23.27557419,125.23,125.2,0.68]
[1766488999331,7.98557419,125.23,125.2,0.68]
[1766488999902,7.98557419,125.23,125.2,2.56311459]
[1766489000102,8.67557419,125.23,125.18,9.87126236]
[1766489000400,8.67557419,125.23,125.19,0.68]
[1766489001029,12.32078755,125.24,125.19,0.68]
[1766489001228,10.43767296,125.24,125.22,0.68]
[1766489001529,18.42252533,125.24,125.22,0.68]
[1766489002232,0.69,125.23,125.19,1.88311459]
[1766489002407,0.69,125.23,125.19,0.68]
[1766489003620,0.69,125.22,125.18,0.68]
[1766489004925,9.86956922,125.22,125.18,0.68]
[1766489005141,0.69,125.18,125.14,0.68]
[1766489005440,0.69,125.18,125.14,2.56311459]
[1766489006129,0.69,125.18,125.14,0.68]
[1766489006725,0.69,125.17,125.14,0.68]
[1766489006926,8.67283383,125.27,125.17,0.68]
[1766489007240,0.69,125.26,125.22,2.56311459]
[1766489008104,0.69,125.26,125.22,1.88311459]
[1766489008304,0.69,125.24,125.2,2.56311459]
[1766489008919,0.69,125.26,125.22,2.56311459]
[1766489009522,22.58237248,125.28,125.23,1.88311459]
[1766489009728,0.69,125.27,125.23,2.56311459]
[1766489009931,10.43767296,125.26,125.25,1.88311459]
[1766489010098,0.69,125.27,125.25,1.88311459]
[1766489010306,8.6715715,125.29,125.26,1.88311459]
[1766489010507,0.69,125.29,125.27,1.88311459]
[1766489011330,8.67158751,125.29,125.26,1.88311459]
[1766489012307,0.69,125.28,125.26,1.88311459]
[1766489014029,0.69,125.28,125.25,0.68]
[1766489014330,0.69,125.28,125.26,1.88311459]
[1766489015420,7.98219704,125.28,125.25,1.88311459]
[1766489015625,0.69,125.27,125.24,1.88311459]
[1766489015850,15.27,125.27,125.24,1.88311459]
[1766489017629,15.27,125.27,125.25,1.88311459]
[1766489019812,15.27,125.27,125.24,1.88311459]
[1766489020017,15.27,125.27,125.25,2.94031665]
[1766489021520,15.27,125.27,125.26,2.94031665]
[1766489022431,15.27,125.27,125.24,0.67]
[1766489022637,15.27,125.27,125.25,2.94031665]
[1766489023022,15.27,125.27,125.24,0.67]
[1766489023223,15.27,125.27,125.25,2.94031665]
[1766489023640,7.98219704,125.28,125.25,2.94031665]
[1766489023641,14.58,125.3,125.25,2.94031665]
[1766489025122,7.98148295,125.29,125.25,2.94031665]
[1766489025641,0.69,125.28,125.25,2.94031665]
[1766489026743,8.67148295,125.29,125.26,2.94031665]
[1766489027243,8.67148295,125.29,125.25,0.67]
[1766489027244,8.67148295,125.29,125.25,3.61031665]
[1766489027539,0.69,125.28,125.25,3.61031665]
[1766489027721,0.69,125.28,125.25,0.67]
[1766489027922,0.69,125.28,125.25,3.61031665]
[1766489030345,7.98213674,125.28,125.23,7.9851492]
[1766489030517,0.69,125.27,125.23,3.61031665]
[1766489030918,0.69,125.27,125.23,2.94031665]
[1766489031230,0.69,125.27,125.24,3.61031665]
[1766489031747,0.69,125.27,125.24,0.67]
[1766489032050,8.67337918,125.27,125.24,0.67]
[1766489032248,0.69,125.26,125.22,0.67]
[1766489032450,0.69,125.26,125.21,2.94031665]
[1766489033746,45.46058894,125.27,125.21,3.61031665]
[1766489033747,8.67403193,125.25,125.21,3.61031665]
[1766489034245,0.69,125.24,125.21,3.61031665]
[1766489036246,8.67473892,125.24,125.21,0.67]
[1766489037246,7.98473892,125.24,125.18,25.01767296]
[1766489037435,7.98473892,125.24,125.18,3.61031665]
[1766489037436,0.69,125.23,125.18,3.61031665]
[1766489037651,3.63031665,125.23,125.18,3.61031665]
[1766489038326,8.67586906,125.23,125.18,3.61031665]
[1766489038769,0.69,125.22,125.18,0.67]
[1766489038935,0.69,125.21,125.17,2.94031665]
[1766489039138,0.69,125.2,125.16,15.25]
[1766489039346,0.69,125.2,125.16,0.67]
[1766489040430,7.98785845,125.19,125.16,0.67]
[1766489040940,7.98785845,125.19,125.16,3.61031665]
[1766489044056,25.01767296,125.21,125.18,0.67]
[1766489044350,7.98599764,125.22,125.2,2.94031665]
[1766489044549,10.43767296,125.22,125.2,0.67]
[1766489044740,8.67530703,125.23,125.2,0.67]
[1766489045053,19.11297999,125.23,125.2,3.61031665]
[1766489046751,19.11297999,125.23,125.19,2.94031665]
[1766489048253,19.11297999,125.23,125.2,2.94031665]
[1766489051649,0.66,125.22,125.19,3.61031665]
[1766489052959,8.64649283,125.22,125.19,3.61031665]
[1766489053159,8.64649283,125.22,125.19,0.67]
[1766489055361,8.64649283,125.22,125.19,3.61031665]
[1766489055666,8.64649283,125.22,125.19,0.67]
[1766489056159,0.66,125.21,125.18,0.67]
[1766489056363,0.66,125.21,125.18,3.61031665]
[1766489059863,28.61135467,125.22,125.19,0.67]
[1766489060558,0.66,125.21,125.18,3.61031665]
[1766489062573,8.64694121,125.21,125.18,3.61031665]
[1766489062773,8.64694121,125.21,125.16,14.6]
[1766489062774,7.98694121,125.21,125.16,14.6]
[1766489063068,0.66,125.2,125.17,0.67]
[1766489064152,0.66,125.2,125.17,3.61031665]
[1766489065671,8.64766088,125.2,125.17,0.67]
[1766489065851,8.64766088,125.2,125.17,3.61031665]
[1766489066046,7.98766088,125.2,125.15,0.2]
[1766489066252,0.68,125.18,125.15,0.89]
[1766489066655,0.68,125.18,125.15,3.83031665]
[1766489066867,0.68,125.18,125.15,0.2]
[1766489067268,0.68,125.18,125.15,0.89]
[1766489068056,7.98913477,125.17,125.15,0.89]
[1766489068261,8.66913477,125.17,125.15,0.2]
[1766489071077,7.98913477,125.17,125.15,3.83031665]
[1766489071774,22.58848085,125.19,125.16,3.63031665]
[1766489071983,23.26848085,125.19,125.16,3.63031665]
[1766489072375,22.58848085,125.19,125.16,2.94031665]
[1766489072577,0.68,125.18,125.16,2.94031665]
[1766489073371,0.68,125.18,125.15,3.14031665]
[1766489075173,8.66852808,125.18,125.15,3.14031665]
[1766489076162,7.98852808,125.18,125.15,3.14031665]
[1766489076361,8.65852808,125.18,125.15,3.14031665]
[1766489076596,0.67,125.17,125.15,1e-08]
[1766489076799,7.98977309,125.16,125.15,1e-08]
[1766489077085,7.98940518,125.17,125.15,3.63031666]
[1766489077278,8.65940518,125.17,125.15,1e-08]
[1766489078882,28.63224212,125.17,125.15,1e-08]
[1766489081000,0.67,125.15,125.12,0.69]
[1766489081174,0.67,125.15,125.12,2.57525311]
[1766489082793,8.66067922,125.15,125.12,0.69]
[1766489082996,8.66067922,125.15,125.12,2.57525311]
[1766489085593,8.66067922,125.15,125.13,1.88525311]
[1766489085981,7.98994717,125.16,125.14,2.57525311]
[1766489092097,7.98994717,125.16,125.14,0.69]
[1766489092298,7.98994717,125.16,125.14,2.57525311]
[1766489093998,7.98913477,125.17,125.15,0.67]
[1766489094312,7.98849656,125.18,125.16,2.55525311]
[1766489095474,7.98849656,125.18,125.16,0.67]
[1766489095675,7.98849656,125.18,125.16,2.55525311]
[1766489097004,7.98806571,125.19,125.17,2.55525311]
[1766489097203,7.98806571,125.19,125.17,0.67]
[1766489097505,7.98806571,125.19,125.13,7.99140919]
[1766489097687,0.71,125.18,125.15,2.55525311]
[1766489097888,8.69860651,125.18,125.15,2.55525311]
[1766489098310,8.69860651,125.18,125.15,0.67]
[1766489098488,8.69860651,125.18,125.15,2.55525311]
[1766489099487,0.71,125.17,125.13,1.88525311]
[1766489099700,0.71,125.17,125.14,0.67]
[1766489101905,8.69947916,125.17,125.14,0.67]
[1766489102778,8.69947916,125.17,125.14,2.55525311]
[1766489106284,8.69947916,125.17,125.14,0.67]
[1766489108416,0.68,125.16,125.12,0.71]
[1766489108715,0.68,125.16,125.13,1.88525311]
[1766489109914,8.67012777,125.16,125.13,1.88525311]
[1766489110213,0.68,125.15,125.12,0.71]
[1766489110595,0.68,125.15,125.12,2.59525311]
[1766489111309,8.67043002,125.15,125.12,2.59525311]
[1766489112118,0.68,125.14,125.11,2.59525311]
[1766489112698,0.68,125.14,125.1,17.19525311]
[1766489112909,0.68,125.14,125.1,2.59525311]
[1766489113104,0.68,125.14,125.11,0.71]
[1766489113303,8.67141546,125.14,125.11,0.71]
[1766489115614,7.99141546,125.14,125.1,1.88525311]
[1766489115818,7.99177454,125.13,125.1,2.59525311]
[1766489116022,0.68,125.12,125.08,0.91]
[1766489116193,0.68,125.11,125.08,0.2]
[1766489117299,8.67360511,125.1,125.08,0.2]
[1766489117512,1.88525311,125.09,125.05,0.71]
[1766489117711,0.68,125.08,125.05,0.71]
[1766489119306,8.6749329,125.08,125.05,0.71]
[1766489121824,10.56018601,125.08,125.05,0.71]
[1766489122331,8.6749329,125.08,125.05,0.71]
[1766489123399,0.68,125.07,125.03,0.71]
[1766489123710,0.68,125.05,125.02,0.91]
[1766489123916,0.68,125.05,125.02,0.2]
[1766489124232,2.56525311,125.06,125.02,0.91]
[1766489124527,2.56525311,125.06,125.02,0.2]
[1766489124829,2.56525311,125.06,125.03,0.71]
[1766489125332,10.56169093,125.06,125.03,0.71]
[1766489127231,8.67643782,125.06,125.03,0.71]
[1766489128225,0.68,125.05,125.02,0.91]
[1766489128425,7.99643782,125.06,125.04,0.71]
[1766489128936,7.99643782,125.06,125.03,1.88525311]
[1766489129137,0.68,125.06,125.04,0.71]
[1766489129432,19.11283423,125.08,125.05,0.71]
[1766489130136,19.11283423,125.08,125.05,2.59525311]
[1766489130719,22.59447739,125.09,125.07,0.71]
[1766489130923,7.99447739,125.09,125.07,0.71]
[1766489131114,19.11152588,125.1,125.07,2.59525311]
[1766489131314,8.6725794,125.12,125.09,0.71]
[1766489131515,7.9925794,125.12,125.1,1.88525311]
[1766489131715,18.42963681,125.13,125.11,0.71]
[1766489131945,7.99196385,125.13,125.1,1.88525311]
[1766489132122,7.99196385,125.13,125.1,2.59525311]
[1766489132443,19.10963681,125.13,125.1,2.59525311]
[1766489133525,19.10963681,125.13,125.1,0.71]
[1766489133725,1.88525311,125.12,125.08,0.71]
[1766489134039,0.68,125.11,125.08,0.71]
[1766489134540,8.67326656,125.11,125.08,0.71]
[1766489137446,0.68,125.1,125.07,1.88525311]
[1766489137654,0.68,125.1,125.06,0.68]
[1766489137942,0.68,125.1,125.06,2.56525311]
[1766489138630,0.68,125.1,125.07,1.88525311]
[1766489138834,0.68,125.1,125.07,2.56525311]
[1766489139435,8.67374517,125.1,125.07,2.56525311]
[1766489139632,8.67374517,125.1,125.07,0.68]
[1766489139840,8.67374517,125.1,125.07,2.56525311]
[1766489140143,0.71,125.09,125.05,0.66]
[1766489140353,0.71,125.09,125.06,1.88525311]
[1766489140544,0.71,125.09,125.06,0.66]
[1766489141240,0.71,125.09,125.06,2.54525311]
[1766489142148,8.70435101,125.09,125.06,3.60886518]
[1766489143953,8.70435101,125.09,125.06,0.66]
[1766489147051,14.6,125.11,125.08,2.94886518]
[1766489147341,6.1281,125.16,125.11,0.66]
[1766489147342,15.31,125.16,125.11,0.66]
[1766489147558,10.43767296,125.15,125.1,3.60886518]
[1766489147737,0.71,125.14,125.1,3.60886518]
[1766489147922,8.70166734,125.14,125.1,3.60886518]
[1766489148123,0.71,125.13,125.1,3.60886518]
[1766489148425,0.71,125.13,125.1,0.66]
[1766489148948,0.71,125.13,125.1,3.60886518]
[1766489149455,18.42826746,125.15,125.11,3.60886518]
[1766489149646,0.71,125.14,125.11,3.60886518]
[1766489149853,0.71,125.14,125.11,0.66]
[1766489150528,8.70115798,125.14,125.11,0.66]
[1766489152361,0.71,125.13,125.1,2.94886518]
[1766489152847,0.71,125.13,125.1,3.60886518]
[1766489153048,7.99115798,125.14,125.1,3.60886518]
[1766489153225,18.42816656,125.15,125.11,2.94886518]
[1766489153427,10.43767296,125.15,125.13,2.94886518]
[1766489153651,11.14767296,125.16,125.13,0.66]
[1766489153850,19.13754488,125.16,125.13,0.66]
[1766489154528,0.71,125.15,125.12,3.60886518]
[1766489155456,18.42754488,125.16,125.13,0.66]
[1766489156854,19.13754488,125.16,125.13,0.66]
[1766489157354,3.65886518,125.15,125.11,0.66]
[1766489157552,0.71,125.14,125.11,0.66]
[1766489162256,8.7006016,125.15,125.11,2.94886518]
[1766489162461,8.7006016,125.15,125.12,0.66]
[1766489162760,7.9906016,125.15,125.11,2.94886518]
[1766489162957,0.71,125.14,125.1,3.60886518]
[1766489163152,0.71,125.14,125.1,0.66]
[1766489164051,7.99168864,125.13,125.1,0.66]
[1766489164255,8.70168864,125.13,125.1,0.66]
[1766489165361,8.70168864,125.13,125.1,3.60886518]
[1766489166466,8.70168864,125.13,125.1,0.66]
[1766489170169,0.71,125.13,125.1,0.66]
[1766489170467,0.71,125.13,125.1,2.94886518]
[1766489170644,23.27136253,125.14,125.11,0.67]
[1766489170970,0.68,125.13,125.1,3.61886518]
[1766489177980,0.68,125.13,125.1,0.67]
[1766489181056,0.68,125.13,125.1,3.61886518]
[1766489182467,0.68,125.13,125.1,0.67]
[1766489191579,23.27136253,125.14,125.1,0.67]
[1766489191778,0.68,125.13,125.1,0.67]
[1766489194470,0.68,125.1,125.06,0.67]
[1766489194664,0.68,125.1,125.06,10.94502625]
[1766489194869,0.68,125.11,125.08,0.67]
[1766489195068,25.71767296,125.12,125.08,0.67]
[1766489196005,25.71767296,125.12,125.08,2.94886518]
[1766489196190,25.71767296,125.12,125.09,0.67]
[1766489196570,33.71042921,125.12,125.09,0.67]
[1766489199676,0.71,125.11,125.08,0.68]
[1766489200478,0.71,125.11,125.07,3.62886518]
[1766489201493,0.71,125.1,125.07,3.62886518]
[1766489201793,0.71,125.1,125.08,0.68]
[1766489203794,8.70374642,125.1,125.08,0.68]
[1766489204686,8.70374642,125.1,125.07,0.68]
[1766489205308,7.99374642,125.1,125.07,0.68]
[1766489205468,8.70374642,125.1,125.07,0.68]
[1766489206107,0.71,125.09,125.03,10.43767296]
[1766489206391,0.71,125.08,125.05,0.68]
[1766489208794,8.70517534,125.08,125.05,0.68]
[1766489208997,0.71,125.07,125.03,2.56685934]
[1766489209174,0.71,125.07,125.04,0.68]
[1766489209678,1.88685934,125.07,125.03,0.68]
[1766489209880,0.71,125.06,125.03,0.68]
[1766489211106,8.70677055,125.06,125.03,0.68]
[1766489212503,8.70677055,125.06,125.02,0.88]
[1766489212504,0.71,125.05,125.02,0.88]
[1766489212899,10.59481427,125.04,125.01,0.2]
[1766489214585,0.71,125.03,125.01,0.2]
[1766489214898,7.99811778,125.03,125.01,0.2]
[1766489215099,0.71,125.02,125.01,0.2]
[1766489215286,8.70811778,125.03,125.01,0.2]
[1766489219102,7.99811778,125.03,125.01,0.2]
[1766489219302,0.71,125.02,125.01,0.2]
[1766489220204,8.7087202,125.02,125.01,0.2]
[1766489220598,8.7087202,125.02,125.0,0.2]
[1766489220907,8.70833618,125.03,125.0,0.88]
[1766489222805,9.88519552,125.03,125.0,0.88]
[1766489223009,0.71,125.01,125.0,0.2]
[1766489223995,7.99876567,125.02,125.0,0.2]
[1766489224199,8.70876567,125.02,125.0,0.2]
[1766489226888,7.99852797,125.03,125.0,0.2]
[1766489227211,25.18538731,125.03,125.0,0.91]
[1766489227708,0.37,124.99,124.97,8.20141492]
[1766489227913,0.37,124.99,124.97,1e-08]
[1766489228492,2.25685934,125.0,124.97,1e-08]
[1766489229515,8.00064005,124.99,124.97,1e-08]
[1766489232817,8.37064005,124.99,124.97,1e-08]
[1766489233112,24.87710076,125.0,124.97,1e-08]
[1766489236501,22.99024142,125.0,124.97,1e-08]
[1766489236714,24.87710076,125.0,124.97,1e-08]
[1766489237395,14.62,125.0,124.97,1e-08]
[1766489237622,14.62,125.0,124.97,0.71000001]
[1766489237916,14.99,125.0,124.97,0.71000001]
[1766489239416,22.99005656,125.0,124.97,0.71000001]
[1766489242117,22.62005656,125.0,124.97,0.71000001]
[1766489242323,14.62,125.0,124.97,0.71000001]
[1766489245120,22.99003008,125.0,124.97,0.71000001]
[1766489246926,8.37003008,125.0,124.97,0.71000001]
[1766489250832,8.00003008,125.0,124.97,0.71000001]
[1766489252338,8.37003008,125.0,124.97,0.71000001]
[1766489254616,8.00003008,125.0,124.97,0.71000001]
[1766489254916,8.37003008,125.0,124.97,0.71000001]
[1766489255111,8.00003008,125.0,124.97,0.71000001]
[1766489255432,8.00003008,125.0,124.98,0.72]
[1766489256335,7.99967437,125.01,124.98,1.88685934]
[1766489256536,0.37,125.04,125.0,0.71]
[1766489256737,7.99830809,125.03,125.01,0.71]
[1766489261743,22.61772435,125.04,125.01,2.59685934]
[1766489261940,22.61772435,125.04,125.01,1.88685934]
[1766489262141,22.61772435,125.04,125.02,0.71]
[1766489262313,22.61772435,125.04,125.02,2.59685934]
[1766489262314,14.62,125.04,125.02,2.59685934]
[1766489262519,7.9970428,125.05,125.02,2.59685934]
[1766489262825,7.9970428,125.05,125.02,0.71]
[1766489263029,0.37,125.03,125.0,0.71]
[1766489264148,16.50685934,125.04,125.0,0.71]
[1766489264149,25.93963642,125.04,125.0,0.71]
[1766489267522,0.37,125.03,124.99,0.71]
[1766489267848,14.99,125.02,124.99,0.71]
[1766489268646,17.94189968,125.02,124.99,0.71]
[1766489268942,22.9893412,125.02,124.99,0.71]
[1766489269752,22.9893412,125.02,124.97,0.71000001]
[1766489269753,0.37,125.01,124.97,0.71000001]
[1766489271754,41.38749878,125.01,124.97,1e-08]
[1766489271939,3.32189968,124.99,124.97,1e-08]
[1766489273450,11.32302386,124.99,124.97,1e-08]
[1766489275632,8.37112418,124.99,124.97,1e-08]
[1766489280360,10.43767296,125.01,124.98,0.71]
[1766489280533,10.80767296,125.01,124.98,0.71]
[1766489280738,28.37957264,125.01,124.98,0.71]
[1766489281239,36.3791919,125.01,124.98,0.71]
[1766489281662,36.0091919,125.01,124.97,1e-08]
[1766489281965,36.3791919,125.01,124.97,1e-08]
[1766489282161,2.95189968,125.0,124.97,1e-08]
[1766489282341,3.32189968,125.0,124.97,1e-08]
[1766489282542,11.32205138,125.0,124.97,1e-08]
[1766489282966,3.32189968,124.99,124.97,1e-08]
[1766489285369,0.37,124.98,124.97,1e-08]
[1766489285772,11.32284188,124.99,124.97,1e-08]
[1766489285965,8.3709422,124.99,124.97,1e-08]
[1766489287474,3.32189968,124.98,124.97,1e-08]
[1766489287774,2.95189968,124.97,124.93,0.67]
[1766489287966,2.69349612,124.97,124.93,0.67]
[1766489288146,3.06349612,124.97,124.93,0.67]
[1766489289564,8.00256081,124.96,124.93,0.67]
[1766489289768,11.06605693,124.96,124.93,0.67]
[1766489290171,11.06605693,124.96,124.92,1e-08]
[1766489290364,11.06605693,124.96,124.92,0.67000001]
[1766489290365,2.69349612,124.95,124.92,0.67000001]
[1766489290682,3.06349612,124.95,124.92,1e-08]
[1766489290853,3.06349612,124.94,124.92,1e-08]
[1766489291876,11.06773704,124.94,124.92,1e-08]
[1766489296098,8.00424092,124.94,124.92,1e-08]
[1766489296273,8.00424092,124.94,124.92,0.67000001]
[1766489298660,11.06773704,124.94,124.92,1e-08]
[1766489300680,8.00344176,124.95,124.92,0.67000001]
[1766489300865,8.00264472,124.96,124.93,0.67]
[1766489301057,8.00213315,124.97,124.94,0.67]
[1766489305982,33.05914817,124.98,124.94,2.69349612]
[1766489306188,22.62147521,124.98,124.95,0.67]
[1766489308286,25.68497133,124.98,124.95,0.67]
[1766489312284,22.99147521,124.98,124.95,0.67]
[1766489312492,14.62,124.98,124.95,3.36349612]
[1766489312693,14.62,124.98,124.96,0.7]
[1766489314901,0.37,124.99,124.96,0.7]
[1766489315888,33.42792559,125.0,124.96,0.7]
[1766489317397,36.12142171,125.0,124.96,0.7]
[1766489318904,14.62,125.02,124.97,2.69349612]
[1766489319081,0.37,125.05,125.01,3.35349612]
[1766489319487,14.99,125.05,125.02,0.66]
[1766489320272,17.31349612,125.05,125.01,17.31349612]
[1766489320474,0.37,125.04,125.01,0.66]
[1766489322799,22.6172066,125.05,125.02,0.66]
[1766489323008,10.43767296,125.06,125.03,0.66]
[1766489323209,25.05767296,125.06,125.03,0.66]
[1766489325596,33.42387292,125.06,125.03,0.66]
[1766489327198,0.37,125.05,125.01,0.66]
[1766489327504,2.09129396,125.05,125.01,23.34144376]
[1766489327808,2.09129396,125.05,125.02,0.66]
[1766489328214,33.05387292,125.06,125.02,1.72129396]
[1766489328384,33.42387292,125.06,125.02,2.38129396]
[1766489328681,33.42387292,125.06,125.02,0.66]
[1766489329324,35.14516688,125.06,125.02,0.66]
[1766489334676,14.62,125.05,125.02,0.66]
[1766489339816,18.80387292,125.06,125.02,0.66]
[1766489340113,14.62,125.05,125.02,0.66]
[1766489343718,8.36619996,125.06,125.02,0.66]
[1766489344016,14.62,125.04,125.02,0.66]
[1766489346409,8.36716868,125.05,125.02,0.66]
[1766489346595,14.62,125.04,125.02,0.66]
[1766489346802,8.36716868,125.05,125.02,0.66]
[1766489347011,14.62,125.04,125.02,0.66]
[1766489347202,14.99,125.04,125.01,0.68]
[1766489347820,22.98777828,125.04,125.01,0.68]
[1766489348490,8.36777828,125.04,125.01,0.68]
[1766489348694,14.62,125.03,125.01,0.68]
[1766489354227,8.36777828,125.04,125.01,0.68]
[1766489354531,14.62,125.03,125.01,0.68]
[1766489355425,14.99,125.03,125.0,15.3]
[1766489355614,22.98815637,125.03,125.0,0.68]
[1766489357826,0.37,125.02,124.99,0.68]
[1766489358028,14.62,125.01,124.99,0.68]
[1766489364541,8.36899996,125.02,124.99,0.68]
[1766489364838,14.62,125.01,124.99,0.68]
[1766489369936,8.36899996,125.02,124.99,0.68]
[1766489370136,14.62,125.01,124.99,0.68]
[1766489373143,14.62,125.01,124.99,2.40129396]
[1766489374847,0.37,125.02,124.99,2.40129396]
[1766489375027,14.62,125.01,124.99,2.40129396]
[1766489376744,14.62,125.01,124.99,0.68]
[1766489377454,0.37,125.04,125.0,1.72129396]
[1766489377748,14.62,125.03,125.01,2.44129396]
[1766489379157,14.62,125.03,125.01,0.72]
[1766489382758,8.36706611,125.05,125.01,0.72]
[1766489382948,14.62,125.04,125.01,0.72]
[1766489383852,8.36706611,125.05,125.01,0.72]
[1766489384159,22.98767334,125.04,125.01,0.72]
[1766489384733,8.36767334,125.04,125.01,0.72]
[1766489385052,22.98767334,125.04,125.01,0.72]
[1766489385361,14.62,125.04,125.01,0.72]
[1766489385941,15.84997911,125.1,125.01,0.72]
[1766489385942,14.99,125.08,125.04,0.72]
[1766489386260,0.37,125.05,125.01,0.72]
[1766489386435,0.37,125.05,125.01,8.72038086]
[1766489386436,2.09129396,125.05,125.01,8.72038086]
[1766489386762,0.37,125.04,125.01,0.72]
[1766489387140,1.72129396,125.05,125.01,0.72]
[1766489387546,2.09129396,125.05,125.01,0.72]
[1766489387964,3.0601378,125.05,125.01,0.72]
[1766489388549,14.99,125.04,125.01,0.72]
[1766489389863,22.98779554,125.04,125.01,0.72]
[1766489394373,3.0601378,125.03,124.99,0.72]
[1766489394570,14.99,125.02,124.99,0.72]
[1766489399961,14.62,125.02,125.0,0.72]
[1766489400159,0.37,125.04,125.0,2.6901378]
[1766489400367,14.62,125.03,125.02,0.72]
[1766489401289,14.99,125.04,125.02,0.72]
[1766489401682,0.37,125.04,125.02,0.72]
[1766489401890,14.99,125.04,125.02,0.72]
[1766489402287,14.62,125.04,125.02,0.72]
[1766489403496,22.98750401,125.04,125.01,0.72]
[1766489405207,14.62,125.04,125.02,0.72]
[1766489405588,14.99,125.04,125.01,3.4101378]
[1766489405993,14.99,125.04,125.02,0.67]
[1766489407324,14.62,125.04,125.02,0.67]
[1766489408297,14.62,125.04,125.02,2.6901378]
[1766489408496,14.62,125.04,125.03,0.67]
[1766489409593,18.80340049,125.07,125.04,0.67]
[1766489409931,33.42340049,125.07,125.04,0.67]
[1766489411198,25.05767296,125.07,125.05,0.67]
[1766489413000,14.62,125.07,125.05,0.67]
[1766489413517,33.05219734,125.09,125.06,0.67]
[1766489413830,33.42219734,125.09,125.06,0.67]
[1766489415403,7.99495735,125.08,125.04,3.3601378]
[1766489415604,0.37,125.07,125.04,3.3601378]
[1766489415815,7.99495735,125.08,125.05,0.67]
[1766489418027,33.42204645,125.09,125.05,0.67]
[1766489420231,36.11218425,125.09,125.05,0.67]
[1766489420435,35.74218425,125.09,125.05,0.67]
[1766489420739,0.37,125.08,125.05,0.67]
[1766489421533,8.36509843,125.08,125.05,0.67]
[1766489421747,0.37,125.06,125.03,0.67]
[1766489422423,14.99,125.07,125.03,2.6901378]
[1766489422628,14.99,125.07,125.04,0.67]
[1766489423652,22.98566996,125.07,125.04,0.67]
[1766489427724,14.62,125.07,125.05,2.6901378]
[1766489427923,18.80148055,125.1,125.07,0.67]
[1766489428231,18.80148055,125.1,125.07,3.3601378]